bitfinex/quotes_ETHUSD_20250611
["timestamp","ask_amount","ask_price","bid_price","bid_amount"]
[1749610036622,0.04,2773.9,2772.5,40.0]
[1749610036817,0.04,2773.9,2772.5,30.0]
[1749610038417,0.04,2773.9,2772.6,10.0]
[1749610038610,0.04,2773.9,2772.7,30.0]
[1749610038809,0.04,2773.9,2772.9,10.0]
[1749610039019,0.04,2773.9,2772.7,10.0]
[1749610039320,0.04,2773.9,2772.5,10.0]
[1749610039618,0.04,2773.9,2772.9,10.0]
[1749610039785,0.04,2773.9,2772.9,4.019]
[1749610039986,0.04,2773.9,2773.0,0.4019]
[1749610040885,0.04,2773.9,2773.1,1.134]
[1749610043408,0.04,2773.9,2773.1,11.134]
[1749610043616,0.04,2773.9,2773.3,10.0]
[1749610043929,0.04,2773.9,2773.1,11.134]
[1749610044132,0.04,2773.9,2773.3,10.0]
[1749610045133,0.04,2773.9,2773.2,1.15359]
[1749610046513,0.04,2773.9,2773.3,10.0]
[1749610046841,0.04,2773.9,2773.4,10.0]
[1749610047043,0.04,2773.9,2773.6,10.0]
[1749610047227,0.04,2773.9,2773.7,1.3997]
[1749610047430,0.04,2774.9,2773.9,10.0]
[1749610047618,0.04,2774.9,2774.1,10.0]
[1749610048348,1.0211,2774.8,2774.1,10.0]
[1749610048513,0.55,2774.7,2774.2,1.134]
[1749610048936,0.19311,2774.6,2774.2,1.134]
[1749610050925,0.55,2774.3,2774.2,1.134]
[1749610054155,0.9872,2774.4,2774.2,1.134]
[1749610061705,0.55,2774.5,2774.2,1.134]
[1749610063760,0.19311,2774.6,2774.2,1.134]
[1749610064398,0.04,2774.9,2774.3,0.0409]
[1749610067581,0.55,2774.8,2774.4,1.122]
[1749610068505,0.55,2774.6,2774.4,1.122]
[1749610068895,0.74356,2774.5,2774.4,1.122]
[1749610069200,0.55,2774.8,2774.4,1.122]
[1749610071985,0.04,2774.9,2774.4,1.122]
[1749610073714,0.55,2774.8,2774.5,1.122]
[1749610075090,0.55,2774.8,2774.6,1.122]
[1749610077991,0.04,2774.9,2774.6,1.122]
[1749610078222,0.55,2774.7,2774.6,1.122]
[1749610082835,0.04,2774.9,2774.6,1.122]
[1749610086468,0.04,2774.9,2774.7,0.0427]
[1749610086657,0.04,2774.9,2774.7,1.122]
[1749610090649,0.04,2774.9,2774.8,0.60164279]
[1749610090844,0.04,2774.9,2774.8,1.30702384]
[1749610091049,0.04,2774.9,2774.8,0.82246314]
[1749610091991,1.0652,2776.1,2774.8,0.82246314]
[1749610092145,1.0652,2776.1,2774.9,10.0]
[1749610092345,1.4252,2776.4,2774.9,10.0]
[1749610092555,11.95792,2776.4,2775.0,1.08224631]
[1749610092773,11.95792,2776.4,2774.9,10.0]
[1749610092774,1.59792,2776.4,2774.9,10.0]
[1749610092969,1.59792,2776.4,2774.9,30.60164279]
[1749610093187,1.59792,2776.4,2774.9,0.60164279]
[1749610093188,1.0652,2776.4,2774.9,0.60164279]
[1749610093481,1.0652,2776.4,2774.9,10.60164279]
[1749610093785,1.0652,2776.4,2775.1,10.0]
[1749610093987,1.0652,2776.4,2775.3,10.0]
[1749610094186,1.0652,2776.4,2775.3,10.35469592]
[1749610094483,1.0652,2776.4,2775.4,1.42546959]
[1749610094688,1.0652,2776.4,2775.5,1.09]
[1749610096656,1.0652,2776.4,2775.5,11.09]
[1749610099756,1.0652,2776.4,2775.6,1.089]
[1749610101291,0.55,2775.9,2775.7,1.089]
[1749610101461,0.55,2775.9,2775.8,1.089]
[1749610101662,0.55,2775.9,2773.1,0.04]
[1749610101663,3.85,2775.9,2774.6,10.0]
[1749610101892,3.3,2775.8,2774.7,1.089]
[1749610102068,0.55,2775.6,2774.7,1.089]
[1749610102265,1.03784,2775.6,2774.7,1.089]
[1749610103090,1.03784,2775.6,2774.8,0.60164279]
[1749610103292,1.0284,2775.7,2774.8,0.96410371]
[1749610103792,1.0284,2775.7,2774.8,0.36246092]
[1749610103983,1.0284,2775.7,2774.7,1.089]
[1749610104170,0.55,2775.6,2774.7,1.089]
[1749610105106,1.0284,2775.7,2774.7,1.089]
[1749610105456,0.55,2775.6,2774.7,1.089]
[1749610105771,1.0434,2775.5,2774.7,1.089]
[1749610105976,3.3,2775.6,2774.8,0.60164279]
[1749610106573,3.3,2775.6,2774.7,1.45712973]
[1749610109094,0.55,2775.5,2774.7,1.45712973]
[1749610109294,1.0276,2775.4,2774.7,0.36812973]
[1749610109497,1.0276,2775.4,2774.8,1.089]
[1749610109663,1.0276,2775.4,2774.4,10.0]
[1749610109664,1.0276,2775.4,2774.9,1.089]
[1749610111798,1.0661,2775.6,2774.9,1.089]
[1749610112101,1.0661,2775.9,2775.0,0.4845607]
[1749610112306,1.0661,2775.9,2775.1,0.21250666]
[1749610112801,3.862,2776.5,2775.1,0.69706736]
[1749610112990,0.48637,2776.4,2775.1,0.69706736]
[1749610113187,10.48637,2776.4,2775.1,0.21250666]
[1749610113591,1.9117,2776.6,2775.2,1.03606659]
[1749610113592,1.0017,2776.6,2775.2,1.03606659]
[1749610113971,1.3617,2776.6,2775.1,10.21250666]
[1749610114166,0.55,2776.5,2775.1,10.21250666]
[1749610114382,0.55,2776.5,2775.2,0.0454]
[1749610114584,0.74117,2776.5,2775.3,1.02579067]
[1749610114874,1.0017,2776.6,2775.4,0.0454]
[1749610115073,1.0017,2776.6,2775.6,0.0454]
[1749610115074,1.3617,2776.6,2775.6,0.0454]
[1749610115275,1.0017,2776.6,2775.7,1.089]
[1749610115601,1.0017,2776.6,2775.8,9.327]
[1749610115801,0.04,2776.9,2775.8,9.327]
[1749610115802,1.0746,2776.9,2775.9,0.5299607]
[1749610116005,1.0746,2776.9,2776.0,1.04084666]
[1749610116373,0.04,2776.9,2776.2,30.0]
[1749610116793,0.04,2776.9,2776.1,0.0454]
[1749610117077,1.0911,2776.8,2776.2,1.089]
[1749610118276,1.0911,2776.8,2776.2,1.44521413]
[1749610120608,1.0911,2776.8,2776.3,1.089]
[1749610121531,1.025,2776.6,2776.4,1.056]
[1749610122099,0.04,2776.9,2776.4,1.056]
[1749610124033,0.04,2776.9,2776.3,0.0454]
[1749610124034,0.04,2776.9,2776.2,0.36574531]
[1749610124205,0.55,2776.8,2776.3,1.056]
[1749610124408,1.5765,2776.5,2776.4,1.056]
[1749610124607,1.83915,2776.5,2776.4,1.056]
[1749610125536,1.83915,2776.5,2775.8,9.327]
[1749610125537,1.0298,2776.3,2775.8,9.327]
[1749610125730,1.0298,2776.3,2775.9,1.056]
[1749610128738,0.55,2776.2,2775.9,1.056]
[1749610129125,1.0647,2776.1,2775.9,1.056]
[1749610129546,0.55,2776.0,2775.8,9.327]
[1749610129747,0.62265,2776.5,2775.9,1.056]
[1749610129748,0.91,2776.4,2775.9,1.056]
[1749610130344,1.1172,2776.3,2775.9,1.056]
[1749610130543,1.6672,2776.0,2775.9,1.056]
[1749610130942,1.6672,2775.9,2775.8,9.327]
[1749610131119,2.0272,2775.9,2775.8,10.383]
[1749610132956,1.6672,2775.9,2775.8,10.383]
[1749610133163,1.6672,2775.9,2775.8,9.327]
[1749610133489,1.6672,2775.9,2775.8,10.383]
[1749610139450,4.9672,2775.9,2775.8,10.383]
[1749610139673,6.84632,2775.9,2775.8,10.383]
[1749610140352,16.84632,2775.9,2775.8,10.383]
[1749610142594,11.1172,2775.9,2775.8,10.383]
[1749610142876,5.12872,2776.2,2775.8,10.383]
[1749610143078,10.0,2776.1,2775.8,10.383]
[1749610143286,0.55,2776.0,2775.8,9.327]
[1749610143519,1.6322,2775.9,2775.8,9.327]
[1749610143652,1.6322,2775.9,2775.8,10.384]
[1749610143844,2.79542,2775.9,2775.8,10.384]
[1749610145082,0.55,2775.8,2774.2,2.808]
[1749610145248,0.55,2775.8,2775.6,9.327]
[1749610145444,0.55,2775.8,2775.7,1.057]
[1749610145648,1.1228,2776.1,2775.7,1.057]
[1749610146194,0.55,2776.0,2775.7,1.057]
[1749610146804,12.119052,2776.0,2775.6,9.327]
[1749610147005,1.1303,2775.9,2775.7,1.057]
[1749610147724,4.9423,2775.9,2775.7,1.057]
[1749610147880,4.9423,2776.2,2775.7,1.057]
[1749610148078,3.813,2776.2,2775.7,1.057]
[1749610148273,3.813,2776.2,2775.7,2.10017]
[1749610148723,3.813,2776.2,2775.7,1.057]
[1749610150642,0.55,2776.5,2775.7,11.057]
[1749610150800,1.1303,2776.6,2775.7,11.057]
[1749610151005,4.9383,2776.6,2775.7,11.057]
[1749610151202,0.55,2776.5,2775.7,11.057]
[1749610151443,0.55,2776.5,2775.8,2.0384]
[1749610153135,0.55,2776.5,2775.9,0.0477]
[1749610154450,0.55,2776.5,2776.0,1.031]
[1749610154837,0.55,2776.3,2776.0,1.031]
[1749610157228,3.85,2776.3,2776.0,1.031]
[1749610158015,0.55,2776.1,2776.0,1.031]
[1749610159844,4.9387,2776.1,2776.0,1.031]
[1749610160411,8.7347,2776.1,2776.0,1.031]
[1749610162066,3.85,2776.1,2776.0,1.031]
[1749610162216,3.3,2776.1,2776.0,1.031]
[1749610163945,0.55,2776.0,2775.6,9.327]
[1749610164149,0.55,2775.8,2775.6,9.327]
[1749610164314,0.55,2775.8,2775.7,1.031]
[1749610166183,4.15,2775.9,2775.7,1.031]
[1749610166336,0.55,2775.8,2775.7,1.031]
[1749610166532,1.02,2775.8,2775.7,1.031]
[1749610167257,3.789,2775.8,2775.7,1.031]
[1749610167456,0.36,2776.0,2775.7,11.031]
[1749610167457,4.148,2776.0,2775.7,11.031]
[1749610167966,4.148,2776.0,2775.8,0.0477]
[1749610168345,7.087,2776.1,2775.8,0.0477]
[1749610168978,0.55,2776.0,2775.7,11.031]
[1749610169185,0.55,2775.8,2775.6,9.327]
[1749610169366,0.55,2775.8,2775.7,1.031]
[1749610175066,4.33,2775.8,2775.7,1.031]
[1749610175852,0.91,2775.3,2774.7,1.38894875]
[1749610176064,0.91,2775.1,2774.8,1.031]
[1749610176771,0.55,2775.1,2774.8,1.031]
[1749610176976,4.356,2775.1,2774.8,1.031]
[1749610177853,4.716,2775.1,2774.8,1.031]
[1749610178053,0.55,2775.3,2774.8,1.031]
[1749610178247,3.807,2775.2,2774.8,1.031]
[1749610179674,1.0749,2775.6,2774.8,1.031]
[1749610179971,0.55,2775.4,2774.8,1.031]
[1749610180185,1.4258,2775.8,2774.8,1.031]
[1749610180186,3.805,2775.6,2774.8,1.031]
[1749610180374,0.55,2775.4,2774.8,1.031]
[1749610182977,0.36,2775.3,2774.9,1.031]
[1749610183175,0.36,2775.3,2774.0,3.806]
[1749610183176,0.36,2775.3,2775.0,1.028]
[1749610183341,0.36,2775.3,2775.1,1.028]
[1749610183537,0.91,2775.3,2775.2,1.028]
[1749610185679,0.91,2775.3,2772.5,9.329]
[1749610185680,1.0463,2774.5,2772.5,9.329]
[1749610185980,0.55,2773.8,2773.2,1.028]
[1749610186177,0.36,2773.8,2773.2,1.028]
[1749610186951,0.36,2773.8,2773.0,0.35786397]
[1749610187142,0.36,2773.9,2773.2,1.028]
[1749610187577,0.36,2773.9,2773.0,0.35786397]
[1749610187773,10.0,2774.0,2773.2,1.028]
[1749610188081,0.55,2773.9,2773.2,1.028]
[1749610188873,0.55,2773.2,2772.5,9.329]
[1749610189073,23.88857406,2773.2,2773.1,1.068]
[1749610190085,14.395,2773.2,2773.1,1.068]
[1749610190288,23.88857406,2773.2,2773.1,1.068]
[1749610190673,0.55,2773.2,2773.1,1.068]
[1749610190875,4.414,2773.2,2773.1,1.068]
[1749610191260,1.0074,2773.6,2773.1,1.068]
[1749610191461,4.413,2773.5,2773.1,1.068]
[1749610192660,0.55,2773.3,2773.1,0.04]
[1749610192861,0.55,2773.3,2773.2,1.028]
[1749610193162,11.5574,2773.3,2773.1,0.04]
[1749610193360,8.49802222,2773.3,2773.2,1.028]
[1749610193785,8.49802222,2773.3,2773.1,0.04]
[1749610193987,13.43040222,2773.2,2773.1,0.04]
[1749610194316,13.43040222,2773.2,2773.1,1.068]
[1749610195469,10.55,2773.1,2772.1,0.04]
[1749610195798,10.55,2773.1,2772.7,1.028]
[1749610195799,1.561,2772.8,2772.7,1.028]
[1749610196870,1.561,2772.8,2772.1,0.04]
[1749610196871,0.55,2772.5,2772.1,0.04]
[1749610197205,1.011,2772.6,2772.1,0.04]
[1749610197206,10.55,2772.3,2772.2,1.028]
[1749610197510,1.011,2772.6,2772.2,1.028]
[1749610197813,3.87,2772.4,2772.2,1.028]
[1749610198307,0.55,2772.3,2772.2,1.028]
[1749610199486,0.9919,2772.3,2772.2,1.028]
[1749610201589,4.2919,2772.3,2772.2,1.028]
[1749610201786,3.3,2772.3,2772.2,1.028]
[1749610202394,0.55,2772.2,2772.1,0.04]
[1749610202822,2.0121,2772.2,2772.1,1.069]
[1749610204211,5.8751,2772.2,2772.1,1.069]
[1749610205312,4.773,2772.2,2772.1,1.069]
[1749610205514,6.27204222,2772.2,2772.1,1.069]
[1749610205707,4.773,2772.2,2772.1,1.069]
[1749610207405,0.91,2772.2,2772.1,1.069]
[1749610207613,8.071,2772.2,2772.1,1.069]
[1749610208235,8.069,2772.2,2772.1,1.069]
[1749610209230,3.3,2772.2,2772.1,1.069]
[1749610209423,3.3,2773.0,2772.1,1.069]
[1749610210047,3.3,2773.0,2772.2,1.1069]
[1749610210753,3.3,2773.0,2772.3,1.029]
[1749610213525,3.3,2773.2,2772.3,1.029]
[1749610213734,3.852,2773.1,2772.3,1.029]
[1749610214126,0.55,2773.3,2772.3,1.029]
[1749610214460,4.70062115,2773.2,2772.3,1.029]
[1749610214769,0.55,2773.3,2772.3,1.029]
[1749610214942,0.84968556,2773.2,2772.3,1.029]
[1749610215253,4.401,2773.3,2772.3,1.029]
[1749610215455,0.85111061,2773.2,2772.3,1.029]
[1749610215761,3.85,2773.3,2772.4,1.1029]
[1749610215958,0.85114214,2773.2,2772.3,1.029]
[1749610216126,3.85,2773.3,2772.3,1.029]
[1749610216326,0.85116316,2773.2,2772.3,1.029]
[1749610216521,0.85116316,2773.1,2772.3,1.029]
[1749610216744,3.85,2773.3,2772.3,1.029]
[1749610216950,0.851484,2773.2,2772.3,1.029]
[1749610217167,0.851484,2773.2,2772.4,1.057]
[1749610217168,0.55,2773.0,2772.4,1.057]
[1749610217496,0.55,2772.8,2772.4,1.057]
[1749610217638,0.55,2773.0,2772.4,1.057]
[1749610217837,0.85190113,2772.9,2772.4,1.057]
[1749610218047,0.55,2773.0,2772.4,1.057]
[1749610218242,0.85189692,2772.9,2772.4,1.057]
[1749610218423,0.55,2773.0,2772.4,1.057]
[1749610218656,0.85230557,2772.9,2772.4,1.057]
[1749610218962,0.55,2773.0,2772.4,1.057]
[1749610219166,0.85235873,2772.9,2772.4,1.057]
[1749610219365,0.55,2773.0,2772.4,1.057]
[1749610221131,7.97234986,2773.4,2772.4,1.057]
[1749610221132,1.05492764,2773.4,2772.4,1.057]
[1749610221336,0.85250988,2773.3,2772.4,1.057]
[1749610221532,1.05492764,2773.7,2772.4,1.057]
[1749610221734,0.85263073,2773.6,2772.4,1.057]
[1749610221933,3.845,2773.9,2772.5,1.1057]
[1749610222143,0.8525371,2773.8,2772.7,10.0]
[1749610222349,5.87702764,2774.1,2772.5,1.1057]
[1749610222635,0.85262545,2774.0,2772.7,10.0]
[1749610222949,0.85262545,2773.9,2772.5,1.1057]
[1749610223150,0.85262545,2773.8,2772.7,10.0]
[1749610223350,0.55,2773.9,2772.8,10.0]
[1749610223528,7.46742222,2773.5,2772.9,1.057]
[1749610223734,0.55,2773.5,2772.9,1.057]
[1749610224442,0.9781,2773.8,2772.8,10.0]
[1749610224766,0.55,2773.7,2772.9,1.057]
[1749610225148,0.55,2773.9,2772.9,1.057]
[1749610226782,0.55,2773.7,2772.8,10.0]
[1749610227086,0.55,2773.4,2772.9,1.056]
[1749610227463,7.46742222,2773.2,2772.9,1.056]
[1749610227759,0.55,2773.0,2772.9,1.056]
[1749610229153,1.0256,2773.3,2772.9,1.056]
[1749610229359,0.55,2773.2,2772.9,1.056]
[1749610231104,3.84,2773.4,2772.9,1.056]
[1749610231257,0.55,2773.3,2772.9,1.056]
[1749610231589,0.36,2773.7,2773.0,10.0]
[1749610231794,1.0771,2773.9,2773.0,10.0]
[1749610232192,0.55,2773.8,2773.0,10.0]
[1749610233163,0.55,2773.6,2773.0,10.0]
[1749610233363,0.36,2773.7,2773.0,10.0]
[1749610233564,0.36,2773.7,2773.1,1.30953]
[1749610233965,0.36,2774.1,2773.1,1.30953]
[1749610234898,0.55,2774.0,2773.1,1.30953]
[1749610235110,1.3365,2774.2,2773.1,1.30953]
[1749610235461,0.55,2774.1,2773.1,1.30953]
[1749610235778,0.55,2774.1,2773.0,10.0]
[1749610235779,0.91,2774.2,2773.2,1.130953]
[1749610236311,0.91,2774.2,2773.2,11.130953]
[1749610237360,14.04942222,2774.6,2773.2,11.130953]
[1749610237361,0.36,2774.3,2773.2,11.130953]
[1749610237761,14.04942222,2774.6,2773.2,11.130953]
[1749610238389,0.55,2774.5,2773.2,11.130953]
[1749610238701,0.55,2774.5,2773.3,1.4963953]
[1749610241294,10.04969657,2774.5,2773.2,1.70919893]
[1749610241495,10.04969657,2774.5,2773.3,1.056]
[1749610242577,10.04969657,2774.5,2773.0,10.0]
[1749610242578,0.55,2774.0,2773.0,10.0]
[1749610242782,9.49969657,2773.8,2773.1,1.056]
[1749610242998,1.60156966,2773.7,2773.1,1.056]
[1749610243198,9.49969657,2773.6,2773.1,1.056]
[1749610243891,0.55,2773.8,2773.1,1.056]
[1749610244093,4.377,2773.8,2773.1,1.056]
[1749610246134,4.377,2773.8,2772.8,10.0]
[1749610246135,9.49969657,2773.4,2772.8,10.0]
[1749610246344,1.5966,2772.8,2772.7,9.337]
[1749610246635,6.54622966,2772.8,2772.7,10.378]
[1749610247210,13.46219233,2772.8,2772.7,10.378]
[1749610247612,13.46219233,2772.8,2772.7,9.337]
[1749610247814,13.46219233,2772.8,2772.7,10.378]
[1749610248217,13.45919233,2772.8,2772.7,10.378]
[1749610250638,13.46359233,2772.8,2772.7,10.378]
[1749610251350,16.76359233,2772.8,2772.7,10.378]
[1749610253708,16.78959233,2772.8,2772.7,10.378]
[1749610254501,16.78859233,2772.8,2772.7,10.378]
[1749610254719,12.92659233,2772.8,2772.7,10.378]
[1749610254918,16.78759233,2772.8,2772.7,10.378]
[1749610255940,9.86962966,2772.8,2772.7,10.378]
[1749610256251,7.159,2772.8,2772.7,10.378]
[1749610256456,7.709,2772.8,2772.7,10.378]
[1749610257852,4.2102,2772.8,2772.7,10.378]
[1749610258052,8.0662,2772.8,2772.7,10.378]
[1749610259633,4.2102,2772.8,2772.7,10.378]
[1749610259950,8.0642,2772.8,2772.7,10.378]
[1749610265143,4.2032,2772.8,2772.7,10.378]
[1749610265955,4.392,2772.8,2772.7,9.337]
[1749610266161,5.1914,2772.8,2772.7,10.379]
[1749610266371,4.7522,2772.8,2772.7,10.379]
[1749610266766,4.7532,2772.8,2772.7,10.379]
[1749610267147,0.9102,2772.8,2772.7,10.379]
[1749610267340,4.7522,2772.8,2772.7,10.379]
[1749610267857,0.3602,2772.9,2772.7,10.379]
[1749610268065,3.84,2772.8,2772.7,10.379]
[1749610268759,0.9102,2773.2,2772.7,10.379]
[1749610268967,0.3602,2773.2,2772.7,10.379]
[1749610269139,3.839,2773.1,2772.7,10.379]
[1749610269466,3.839,2773.1,2772.7,11.4169]
[1749610270349,3.839,2773.1,2772.7,10.379]
[1749610273889,3.839,2773.1,2772.8,0.00485453]
[1749610277170,11.04752372,2772.9,2772.8,0.00485453]
[1749610277381,14.34752372,2772.9,2772.8,0.00485453]
[1749610277697,14.34752372,2772.9,2772.8,1.04885453]
[1749610277900,16.52637609,2772.9,2772.8,1.04885453]
[1749610279362,17.37831028,2772.9,2772.8,1.04885453]
[1749610279577,27.37831028,2772.9,2772.8,1.04885453]
[1749610279888,27.37831028,2772.9,2772.8,1.044]
[1749610280084,27.37831028,2772.9,2772.1,0.04]
[1749610280085,1.6364,2772.2,2772.1,0.04]
[1749610280267,15.16998372,2772.2,2772.1,0.04]
[1749610280709,15.16998372,2772.2,2771.1,0.04]
[1749610280710,0.55,2771.6,2771.1,0.04]
[1749610280866,11.50652372,2771.2,2771.1,0.04]
[1749610281061,15.37952372,2771.2,2771.1,0.04]
[1749610281602,15.37952372,2771.2,2769.4,3.873]
[1749610281603,15.37952372,2771.2,2769.0,10.0]
[1749610281772,9.50992372,2770.6,2769.1,3.63273091]
[1749610281965,9.50992372,2770.6,2768.8,13.12157613]
[1749610281966,9.50992372,2770.6,2769.0,10.0]
[1749610282194,0.9102,2771.0,2768.1,7.87057851]
[1749610282195,0.55,2770.1,2768.1,7.87057851]
[1749610282378,0.55,2769.3,2768.2,0.76164783]
[1749610282577,0.55,2769.3,2768.1,7.87057851]
[1749610282578,0.3602,2769.9,2768.1,8.23042262]
[1749610282801,0.55,2769.7,2768.3,10.0]
[1749610282977,0.55,2769.8,2768.7,10.0]
[1749610283178,0.55,2770.1,2768.7,30.0]
[1749610283377,0.55,2770.1,2768.6,9.95]
[1749610283703,0.55,2770.1,2768.7,3.911]
[1749610283899,0.55,2770.1,2768.8,10.0]
[1749610284071,0.55,2770.1,2768.9,1.3911]
[1749610284290,0.55,2770.1,2769.0,3.909]
[1749610284493,0.55,2770.2,2769.0,3.908]
[1749610284798,4.458,2770.2,2769.0,3.908]
[1749610285206,4.458,2770.2,2769.1,20.431]
[1749610285379,4.458,2770.2,2769.2,2.4339]
[1749610286394,0.55,2769.9,2769.3,1.09]
[1749610287089,9.50992372,2769.7,2769.1,19.341]
[1749610287292,9.50992372,2769.7,2769.2,1.09]
[1749610288092,9.50992372,2769.7,2769.1,19.341]
[1749610288278,9.50992372,2769.7,2769.2,3.0241]
[1749610288279,0.55,2769.7,2769.2,3.0241]
[1749610288684,3.905,2769.8,2769.2,3.0241]
[1749610289088,3.905,2769.8,2769.3,10.0]
[1749610289391,0.55,2770.0,2769.3,10.0]
[1749610289584,0.55,2770.0,2769.4,1.30241]
[1749610289786,0.55,2770.2,2769.4,1.30241]
[1749610291915,0.55,2770.2,2769.5,11.09]
[1749610292405,0.55,2770.2,2769.6,1.09]
[1749610292590,0.55,2770.2,2769.5,10.0]
[1749610292798,0.55,2770.2,2769.6,1.09]
[1749610292990,0.55,2770.2,2769.5,11.130241]
[1749610293195,0.55,2770.2,2769.6,1.09]
[1749610293390,0.55,2770.2,2769.7,1.09]
[1749610293574,0.55,2770.2,2769.5,11.130241]
[1749610293575,0.55,2770.2,2769.8,1.09]
[1749610299309,3.85,2770.2,2769.8,1.09]
[1749610300816,5.29463237,2770.2,2769.9,1.091]
[1749610301021,0.55,2770.0,2769.9,1.091]
[1749610303327,10.05992372,2770.0,2769.9,1.091]
[1749610303640,0.55,2770.0,2769.9,1.091]
[1749610309228,0.04,2770.9,2769.9,1.091]
[1749610309404,0.04,2770.9,2770.0,1.06009237]
[1749610309993,0.04,2770.9,2770.1,9.50992372]
[1749610310228,0.04,2770.9,2770.2,10.0]
[1749610310438,0.04,2770.9,2770.5,10.0]
[1749610310739,0.04,2770.9,2770.4,9.50992372]
[1749610311029,0.04,2770.9,2770.4,10.01992372]
[1749610311921,0.04,2770.9,2770.7,9.50992372]
[1749610312110,0.04,2770.9,2770.7,9.86178017]
[1749610312297,0.04,2770.9,2770.8,1.09]
[1749610312497,0.04,2770.9,2770.8,2.57117802]
[1749610312699,0.04,2770.9,2770.8,42.57117802]
[1749610312899,0.04,2771.9,2771.0,30.0]
[1749610313127,0.04,2771.9,2771.1,9.344]
[1749610313329,0.04,2771.9,2771.2,3.861]
[1749610313632,0.04,2771.9,2771.2,4.38271564]
[1749610314208,0.04,2771.9,2771.3,1.061]
[1749610317720,0.04,2771.9,2771.3,11.061]
[1749610318219,0.04,2771.9,2771.3,11.81843038]
[1749610318420,0.04,2771.9,2771.4,0.00663521]
[1749610318649,0.04,2771.9,2771.5,1.18250656]
[1749610319959,0.04,2771.9,2771.4,0.00663521]
[1749610320124,0.04,2771.9,2771.5,1.061]
[1749610320319,0.04,2771.9,2771.4,0.00663521]
[1749610320520,0.04,2771.9,2771.5,1.061]
[1749610320947,0.04,2771.9,2771.4,0.00663521]
[1749610321143,1.07100907,2771.9,2771.5,1.061]
[1749610321730,1.07100907,2771.9,2771.6,1.061]
[1749610322350,0.04,2771.9,2771.4,0.00663521]
[1749610322539,0.04,2771.9,2771.5,1.061]
[1749610324058,0.04,2771.9,2771.4,0.00663521]
[1749610324363,0.04,2771.9,2771.5,1.061]
[1749610333243,0.04,2771.9,2771.6,13.825]
[1749610333454,0.04,2771.9,2771.8,59.50992372]
[1749610333767,9.50992372,2773.4,2772.2,10.0]
[1749610333768,1.0331,2773.2,2772.2,10.0]
[1749610333989,1.0331,2773.2,2772.4,10.0]
[1749610335438,0.9841,2773.4,2772.4,10.0]
[1749610337479,0.9841,2773.4,2772.4,19.50992372]
[1749610337782,0.4002,2773.9,2772.5,30.0]
[1749610337783,0.9449,2773.7,2772.5,30.0]
[1749610337969,0.9449,2773.7,2772.4,19.50992372]
[1749610337970,0.9449,2773.7,2772.6,1.07631564]
[1749610338167,0.9449,2773.7,2772.8,10.0]
[1749610339875,0.9449,2773.7,2772.7,3.818]
[1749610340959,0.9449,2773.7,2772.8,4.872]
[1749610341575,0.9449,2773.7,2772.8,23.764]
[1749610341773,0.9449,2773.7,2772.8,26.32149366]
[1749610342578,0.9449,2773.7,2772.8,36.32149366]
[1749610344179,0.9955,2773.9,2772.9,10.0]
[1749610344387,0.9955,2773.9,2773.1,10.0]
[1749610344678,0.9955,2773.9,2773.2,3.807]
[1749610344886,0.9955,2773.9,2773.2,6.1213]
[1749610345304,0.04,2773.9,2773.2,6.1213]
[1749610347004,0.9461,2773.8,2773.1,10.0]
[1749610347198,0.55,2773.7,2773.2,1.03]
[1749610347578,0.55,2773.7,2773.0,9.846]
[1749610347579,0.55,2773.5,2773.0,9.846]
[1749610347755,0.9461,2773.4,2773.3,1.03]
[1749610351076,1.4461,2773.4,2773.3,1.03]
[1749610352470,0.5,2773.4,2773.3,1.03]
[1749610357095,1.037,2773.7,2773.3,1.03]
[1749610359310,1.037,2773.7,2773.4,9.334]
[1749610362602,1.037,2773.7,2773.5,1.03]
[1749610363509,0.55,2773.8,2773.5,1.03]
[1749610365712,0.5,2773.6,2773.5,1.03]
[1749610368147,0.5,2773.6,2773.5,7.25020994]
[1749610370839,1.0059,2773.5,2773.4,9.334]
[1749610371038,1.5559,2773.5,2773.4,10.364]
[1749610371407,1.76149,2773.5,2773.4,10.364]
[1749610372008,1.76149,2773.5,2773.4,9.334]
[1749610372233,1.76149,2773.5,2773.4,10.364]
[1749610373520,1.5559,2773.5,2773.4,10.364]
[1749610374711,1.0059,2773.5,2773.4,10.364]
[1749610377920,1.3661,2773.5,2773.4,10.364]